Cogmind - Beta 13 *** ADVENTURER MODE // 2024.04.21 @ 16:16:20 Player: WarlockD Result: Destroyed by Y-45 Defender with Heavy Assault Rifle Performance ------------- Evolutions (0) 0 Regions Visited (3) 600 Robots Destroyed (15) 75 Value Destroyed (432) 432 Prototype IDs (0) 0 Alien Tech Used (0) 0 Bonus (0) 0 TOTAL SCORE: 1107 Bonus ------- None Cogmind --------- Core Integrity 0/250 Matter 295/300 Energy 18/100 System Corruption 0% Temperature Cool (21) Movement Rolling (110) Location -8/Recycling Parts ------- > --- POWER (1) -------- Subdweller Power Source > --- PROPULSION (2) --- Subdweller Monowheel > --- UTILITY (2) ------ Small Storage Unit Structural Scanner > --- WEAPON (2) ------- Subdweller Laser > --- INVENTORY (8) ---- Advanced Weight Redist. System Subdweller Optics Sensor Array Scrap Shield Beam Cannon Subdweller Beam Cannon Subdweller Shrapnel Launcher Peak State ------------ > --- POWER ------------ Subdweller Power Source > --- PROPULSION ------- Subdweller Monowheel Subdweller Monowheel > --- UTILITY ---------- Small Storage Unit Structural Scanner > --- WEAPON ----------- Subdweller Laser Subdweller Shrapnel Launcher > --- INVENTORY -------- Aluminum Leg Aluminum Leg Subdweller Optics Sensor Array Scrap Shield Beam Cannon Mining Laser [Rating: 13] Favorites ----------- Power Light Ion Engine Engine Light Ion Engine Propulsion Aluminum Leg Leg Aluminum Leg Wheel Subdweller Monowheel Utility Small Storage Unit Device Structural Scanner Storage Small Storage Unit Protection Light Armor Plating Weapon Medium Laser Energy Gun Medium Laser Energy Cannon Beam Cannon Launcher Subdweller Shrapnel Launcher Special Weapon Mining Laser Build | -11 -10 -10 -8 ------- Run | Yrd Mat Sub Rec Slots Evolved . | . . . . Power . | . . . . Propulsion . | . . . . Utility . | . . . . Weapon . | . . . . Parts Attached 20 | 6 6 7 1 Power 2 | 1 . 1 . Engine 2 | 1 . 1 . Core . | . . . . Reactor . | . . . . Propulsion 4 | 2 . 2 . Treads . | . . . . Leg 2 | 2 . . . Wheel 2 | . . 2 . Hover . | . . . . Flight . | . . . . Utility 4 | 1 3 . . Device 2 | . 2 . . Storage 1 | 1 . . . Processor . | . . . . Hackware . | . . . . Protection 1 | . 1 . . Artifact . | . . . . Weapon 10 | 2 3 4 1 Energy Gun 3 | 2 . 1 . Energy Cannon 4 | . 2 2 . Ballistic Gun . | . . . . Ballistic Cannon . | . . . . Launcher 1 | . . 1 . Special Weapon 2 | . 1 . 1 Impact Weapon . | . . . . Slashing Weapon . | . . . . Piercing Weapon . | . . . . Special Melee Weapon . | . . . . Unidentified Prototypes . | . . . . Parts Lost 3 | . . 1 2 Power 1 | . . 1 . Propulsion 1 | . . . 1 Utility . | . . . . Weapon 1 | . . . 1 Highest Loss Streak 2 | . . 1 2 To Critical Strikes . | . . . . Average Slot Usage (%) 98 | . 98 99 93 Engine 13 | . 14 13 14 Leg 17 | . 28 6 . Wheel 10 | . . 21 24 Device 12 | . 11 14 14 Storage 14 | . 14 14 14 Energy Gun 18 | . 24 10 14 Energy Cannon 7 | . 3 11 10 Launcher 1 | . . 3 . Special Weapon 1 | . . 2 1 Naked Turns . | . . . . Heaviest Build 23 | 12 15 23 23 Greatest Support 40 | 20 20 40 40 Greatest Overweight (x) 1 | 1 . . . Average Overweight (x) . | . . . . Largest Inventory Capacity 8 | 8 8 8 8 Average Capacity 7 | 6 8 8 8 Most Carried 8 | 3 8 8 8 Average Carried 6 | 1 5 7 8 Final Capacity 8 | 8 8 8 8 Final Carried 8 | 1 7 8 8 Class Distribution -------------------- 64% | Mutant 35% | Scavenger-Mutant Dominant Class ---------------- Mutant | -10/Materials Scavenger-Mutant | -10/Subcaves Scavenger-Mutant | -8/Recycling Resources | -11 -10 -10 -8 ----------- Run | Yrd Mat Sub Rec Matter Collected 405 | 215 75 115 . Remotely . | . . . . Salvage Created 486 | . 231 141 114 Parts 33 | . 13 12 8 Haulers Intercepted . | . . . . Recyclers Shooed . | . . . . Parts Field Recycled . | . . . . Retrieved Matter . | . . . . Parts Self-Destructed 15 | . . 15 . Prevented . | . . . . Kills | -11 -10 -10 -8 ------- Run | Yrd Mat Sub Rec Combat Hostiles Destroyed 14 | . 7 5 2 Guns 8 | . 6 1 1 Cannons 5 | . . 4 1 Classes Destroyed 5 | . 3 1 1 Watcher 1 | . 1 . . Swarmer 5 | . 3 2 . Grunt 5 | . 4 1 . Sentry 2 | . . . 2 Subdweller 2 | . . 2 . Best Kill Streak 3 | . 3 2 2 Combat Bots Only 3 | . 3 2 2 Max Kills in Single Turn 1 | . 1 1 1 Gunslinging . | . . . . Exploded . | . . . . Melee . | . . . . Uniques/NPCs Destroyed . | . . . . Combat | -11 -10 -10 -8 -------- Run | Yrd Mat Sub Rec Hostile Shots Fired 102 | . 34 34 34 Missed 28 | . 9 14 5 Damage Taken 780 | . 203 249 328 Core 254 | . 34 96 124 Absorbed by Shields . | . . . . Ignored by Resistances 228 | . 63 74 91 Core Remaining (%) 100 | 100 . . . Volleys Fired 64 | . 27 21 16 Largest 2 | . 2 2 2 Hottest 140 | . 100 140 140 Shots Fired 102 | . 51 34 17 Gun 75 | . 48 11 16 Cannon 22 | . . 21 1 Launcher 2 | . . 2 . Special 3 | . 3 . . Kinetic 2 | . . 2 . Thermal 100 | . 51 32 17 Explosive . | . . . . Electromagnetic . | . . . . Robot Hit Streak 23 | . 12 23 17 Robot Miss Streak 3 | . 1 3 1 Penetration Max . | . . . . Secondary Targets . | . . . . Shots Hit Robots 77 | . 35 26 16 Core Hits 22 | . 12 7 3 Critical Kills . | . . . . Critical Parts Destroyed 1 | . . . 1 Critical Strikes 4 | . 3 . 1 Burn 3 | . 3 . . Destroy 1 | . . . 1 Melee Attacks . | . . . . Impact . | . . . . Slashing . | . . . . Piercing . | . . . . Sneak Attacks . | . . . . Combat Hostiles . | . . . . Follow-up Attacks . | . . . . Damage Inflicted 1275 | . 435 523 317 Guns 883 | . 435 156 292 Cannons 323 | . . 298 25 Explosions 69 | . . 69 . Melee . | . . . . Ramming . | . . . . Kinetic 69 | . . 69 . Thermal 1206 | . 435 454 317 Explosive . | . . . . Electromagnetic . | . . . . Impact . | . . . . Slashing . | . . . . Piercing . | . . . . Highest Corruption . | . . . . Average Corruption . | . . . . Corruption Purged . | . . . . Corruption Blocked . | . . . . Overload Shots . | . . . . Overflow Damage . | . . . . Projectiles . | . . . . Explosions . | . . . . Melee . | . . . . Knockbacks . | . . . . Impact . | . . . . Kinetic . | . . . . Secondary . | . . . . Self-Inflicted Damage . | . . . . Shots . | . . . . Rammed . | . . . . Targets Rammed . | . . . . Kicked . | . . . . Crushed . | . . . . Highest Temperature 258 | . 258 36 174 Average Temperature 55 | . 60 16 57 Received Heat Transfer 324 | . 102 51 171 Effects 2 | . 2 . . Interference 2 | . 2 . . Siege Activations . | . . . . Robots Corrupted . | . . . . Combat Hostiles . | . . . . Parts Fried . | . . . . Impact Corruptions . | . . . . Robots Melted 1 | . 1 . . Combat Hostiles 1 | . 1 . . Parts Melted 3 | . 2 1 . Heat Transferred 2684 | . 1517 755 412 Parts Sabotaged . | . . . . Parts Stolen . | . . . . Parts Stripped . | . . . . Power Chain Reactions . | . . . . Alert | -11 -10 -10 -8 ------- Run | Yrd Mat Sub Rec Peak Influence 297 | . 170 . 297 Initial 257 | . . . 257 Average 82 | . 61 . 289 Maximum Alert Level 1 | . . . 1 Low Security (%) 88 | 100 100 . . Level 1 11 | . . . 100 Level 2 . | . . . . Level 3 . | . . . . Level 4 . | . . . . Level 5 . | . . . . High Security . | . . . . Max Security . | . . . . Squads Dispatched 2 | . 2 . . Investigation 2 | . 2 . . Extermination . | . . . . Reinforcement . | . . . . Assault . | . . . . Garrison . | . . . . Intercept . | . . . . Searches Triggered . | . . . . Construction Impeded . | . . . . Haulers Reinforced . | . . . . Active Scanning Responses . | . . . . Cargo Convoy Interrupts . | . . . . Stealth | -11 -10 -10 -8 --------- Run | Yrd Mat Sub Rec Distress Signals . | . . . . Communications Jammed . | . . . . Distress Signals . | . . . . Times Spotted 58 | . 16 39 3 Peak Tracking Total 5 | . 4 5 2 Tactical Retreats 2 | . . 2 . Traps | -11 -10 -10 -8 ------- Run | Yrd Mat Sub Rec Traps Triggered 2 | . 2 . . Indirectly . | . . . . Trap Hack Attempts . | . . . . Triggered . | . . . . Disarmed . | . . . . Reprogrammed . | . . . . Reused . | . . . . Traps Extracted . | . . . . Installed . | . . . . Triggered . | . . . . Machines | -11 -10 -10 -8 ---------- Run | Yrd Mat Sub Rec Machines Disabled . | . . . . Max in Single Turn . | . . . . Machines Repaired . | . . . . Machines Dismantled . | . . . . Machines Sabotaged . | . . . . Overloaded Fab Kills . | . . . . Hacking | -11 -10 -10 -8 --------- Run | Yrd Mat Sub Rec Machines Accessed 4 | . 4 . . Terminals 3 | . 3 . . Fabricators . | . . . . Repair Stations . | . . . . Recycling Units 1 | . 1 . . Scanalyzers . | . . . . Garrison Access . | . . . . Total Hacks 8 | . 8 . . Successful 6 | . 6 . . Failed 2 | . 2 . . Catastrophic . | . . . . Database Lockouts . | . . . . Manual . | . . . . Terminals 6 | . 6 . . Fabricators . | . . . . Repair Stations . | . . . . Recycling Units 2 | . 2 . . Scanalyzers . | . . . . Garrison Access . | . . . . Terminal Hacks 4 | . 4 . . Robot Analysis 1 | . 1 . . Locate Traps 1 | . 1 . . Dispatch Records 1 | . 1 . . Hauler Manifests 1 | . 1 . . Fabricator Hacks . | . . . . Repair Station Hacks . | . . . . Recycling Unit Hacks 2 | . 2 . . Report Inventory 1 | . 1 . . Retrieve Matter 1 | . 1 . . Scanalyzer . | . . . . Garrison Access Hacks . | . . . . Unauthorized Hacks . | . . . . Terminals . | . . . . Fabricators . | . . . . Repair Stations . | . . . . Recycling Units . | . . . . Scanalyzers . | . . . . Garrison Access . | . . . . Data Cores Recovered . | . . . . Used . | . . . . Hacking Detections 2 | . 2 . . Full Trace Events . | . . . . Feedback Events . | . . . . Feedback Blocked . | . . . . Robot Schematics Acquired . | . . . . Robots Built . | . . . . Authchips . | . . . . Time . | . . . . Total Robot Build Rating . | . . . . Part Schematics Acquired . | . . . . Parts Built . | . . . . Authchips . | . . . . Time . | . . . . Total Part Build Rating . | . . . . Parts Repaired . | . . . . Time . | . . . . Parts Recycled . | . . . . Recycled Matter . | . . . . Retrieved Matter 98 | . 98 . . Retrieved Components . | . . . . Parts Scanalyzed . | . . . . Part Schematics Acquired . | . . . . Parts Damaged . | . . . . Bothacking | -11 -10 -10 -8 ------------ Run | Yrd Mat Sub Rec Used RIF Installer . | . . . . Robots Hacked . | . . . . Non-combat . | . . . . Combat . | . . . . Robot Hacks Applied . | . . . . Relay Couplers Released . | . . . . Fabnet Peak Effective % . | . . . . Robots Rewired . | . . . . Allies Hacked . | . . . . Hacks Repelled . | . . . . Allies | -11 -10 -10 -8 -------- Run | Yrd Mat Sub Rec Total Allies . | . . . . Largest Group . | . . . . Highest-Rated Group . | . . . . Highest-Rated Ally . | . . . . Total Orders . | . . . . Ally Attacks . | . . . . Total Damage . | . . . . Kills . | . . . . Allies Corrupted . | . . . . Allies Melted . | . . . . Intel | -11 -10 -10 -8 ------- Run | Yrd Mat Sub Rec Robot Analysis Total 1 | . 1 . . Derelict Logs Recovered . | . . . . Drone Launches . | . . . . Drone Recoveries . | . . . . Exploration | -11 -10 -10 -8 ------------- Run | Yrd Mat Sub Rec Turns Passed 1540 | 64 769 602 105 Spaces Moved 997 | 46 441 463 47 Core 7 | 7 . . . Treads . | . . . . Legs 560 | 39 441 80 . Wheels 430 | . . 383 47 Hover . | . . . . Flight . | . . . . Fastest Speed 50 | 50 120 110 110 Average Speed 115 | 111 120 111 110 Slowest Speed 120 | 120 120 120 110 Overloaded Moves . | . . . . Propulsion Burnouts . | . . . . Robots Hopped . | . . . . Cave-ins Triggered . | . . . . Exploration Rate (%) 30 | 5 61 44 13 Regions Visited 3 Branch Regions 2 Pre-discovered Areas . | . . . . Known Exits Taken . | . . . . Unknown Exits Taken 3 | 1 1 1 . Scrap Searched . | . . . . Spaces Dug . | . . . . Terrain Destroyed 25 | . . 25 . Melee . | . . . . Projectile 1 | . . 1 . AOE 24 | . . 24 . Terrain Rammed . | . . . . Walls Destroyed . | . . . . Machines Disabled . | . . . . Actions | -11 -10 -10 -8 --------- Run | Yrd Mat Sub Rec Total 1279 | 58 625 514 82 Wait 161 | . 135 10 16 Move 994 | 45 440 462 47 Hop . | . . . . Pick Up 26 | 7 12 6 1 Fast Attach 2 | . . 2 . Attach 10 | 6 4 . . Detach 1 | . . 1 . Swap 8 | . 2 5 1 Drop 13 | . 5 7 1 Fire 64 | . 27 21 16 Melee . | . . . . Ram . | . . . . Kick . | . . . . Crush . | . . . . Escape Stasis . | . . . . Rewire . | . . . . Trap . | . . . . Miscellaneous . | . . . . Route ------- -11/Scrapyard -10/Materials (discovered 3 exits: [*Mat] / [*Min] / [*Sub]) -10/Subcaves -8/Recycling History --------- Turn | Location | Event 8 | -11/Scrapyard | Discovered new exit (range 15) 65 | -11/Scrapyard | Entered Materials 310 | -10/Materials | Build established: Mutant 330 | -10/Materials | Discovered new exit (range 6) 616 | -10/Materials | Discovered new exit (range 10) 650 | -10/Materials | Discovered new exit (range 16) 834 | -10/Materials | Entered Subcaves 933 | -10/Subcaves | Ambushed by swarm of Subdwellers 985 | -10/Subcaves | Shifting Twisted Machinery released Sub. Shrapnel Launcher 1024 | -10/Subcaves | Shifting Twisted Machinery released Shrapnel Trap 1271 | -10/Subcaves | Build established: Scavenger-Mutant 1367 | -10/Subcaves | Core integrity fell below 50% 1375 | -10/Subcaves | Discovered new exit (range 10) 1398 | -10/Subcaves | Shifting Twisted Machinery released Flamer 1436 | -10/Subcaves | Entered Recycling 1524 | -8/Recycling | Core integrity fell below 20% 1541 | -8/Recycling | Destroyed by Y-45 Defender with Heavy Assault Rifle Last Messages --------------- 01447_ Y-45 Defender destroyed. 01451_ R-06 Scavenger collects Beam Rifle. 01452_ R-06 Scavenger collects Lgt. Armor Plating. 01456_ R-06 Scavenger collects Imp. Ion Engine. 01460_ R-06 Scavenger collects Lgt. Treads. 01462_ R-06 Scavenger collects Heat Sink. 01476_ Dropped Aluminum Leg. 01476_ Acquired Adv. Weight Redist. System. 01478_ R-06 Scavenger inserts Imp. Ion Engine into recycling unit. 01481_ R-06 Scavenger inserts Heat Sink into recycling unit. 01503_ Y-45 Defender springs to life. 01511_ Sub. Monowheel destroyed. 01520_ Mining Laser destroyed. 01525_ Y-45 Defender suffers critical hit (Destroy). 01525_ Destroyed Lgt. Treads. 01535_ Critical hit (Burn: +37). Map ----- +----------------------------------------------------+ | ?????????????????????????????????????????????????? | | ?????????????????????????????????????????????????? | | ?????????????????????????????????????????????????? | | ?????????????????????????????????????????????????? | | ?????????????????????????????????????????????????? | | ?????????????????????????????????????????????????? | | ?????????????????????????????????????????????????? | | ?????????????????????????????????????????????????? | | ?????????????????????????????????????????????????? | | ?????????????????????????????????????????????????? | | ?????????????????????????? ?????????????????????? | | ???????#############?????? ????????????????????? | | ####################??###? ????????????????????? | | #########"""###! !## ?!### ????????????????????? | | ## ##"Y"### ! ##!! ### ?????????????????????? | | ## = r "??????????????????? | | ## ??????????????????? | | ## r ??????????????????? | | ## #####+#######!!!# ####??????????????????? | | ### #### ## !!# ## ??????????????????? | | ## #### ##?### ##????????????????????? | | ###% #### %! ##?### ##????????????????????? | | ### ####[ ! ##?### ##????????????????????? | | ?## #### % ##?## ## ???????????????????? | | ?## ####% ##?###Yr ## ???????????????????? | | ?## #### / !###### @ + ???????????????????? | | ?## %### ###### ## ???????????????????? | | ?## !!####! + ## ???????????????????? | | ?## ###################+###????????????????????? | | ?############## ????????????????????? | | ?#######???????????????? ??????????????????????? | | ???????????????????????"""""?????????????????????? | | ???????????????????????"""""?????????????????????? | | ?????????????????????? """"" ????????????????????? | | ?????????????????????? ????????????????????? | | ???????????????????? ??????????????????? | | ????????????????????###?"T"?###??????????????????? | | ????????????????????###?????###??????????????????? | | ?????????????????????????????????????????????????? | | | | | | | | | | | | | | | | | | | | | | | +----------------------------------------------------+ Best States ------------- Heat Dissipation 35 Energy Generation 15 Energy Capacity 200 Matter Stores 300 Matter Capacity 300 Sight Range 16 Terrain Scan Density 10 Armor Coverage 150 Resistance: KI 20 Resistance: TH 20 Resistance: EX 20 Resistance: EM 20 Resistance: I 20 Resistance: S 20 Resistance: P 20 Evasion (%) 55 Offensive Hacking 10 Item Schematics ----------------- None Robot Schematics ------------------ None Fabricated ------------ Nothing Alien Tech Used ----------------- None Achievements -------------- Shopping List Challenges ------------ None Game ------ Seed FlakRocketKatana Manual? 0 Play Time 00:28:04 Cumulative 4.6 hours Start 2024.04.21 @ 15:49:29 End 2024.04.21 @ 16:16:20 Sessions 1 Manual Loads 0 Difficulty Adventurer Special Mode None Game No. 7 Rogue 0 Adventurer 7 Explorer 0 Win Type - Total 0 Types 0/0/0/0/0/0/0/0/0 Lore% 11 Gallery% 12 Achievement% 10 Wizard Run 0 Options --------- Layout 1 ASCII 0 Keyboard 0 Movement Mouse Keybinds 0 Fullscreen 1 Font 24/Smallcaps Map View 50x35 Zoom Use 0% Tactical HUD 1 Map Filters NONE Filters NONE Steam 1 RUN: 59559bb5-3f6d-484a-8206-47ed17584750